bitfinex-derivatives/quotes_BTCF0:USTF0_20250924
["timestamp","ask_amount","ask_price","bid_price","bid_amount"]
[1758727807709,1.27473876,113700.0,113690.0,0.4345]
[1758727807911,1.27473876,113700.0,113690.0,0.51318633]
[1758727812020,0.9100865,113700.0,113690.0,0.97516063]
[1758727812327,1.26113876,113700.0,113690.0,0.97516063]
[1758727813226,1.26113876,113700.0,113690.0,0.88724633]
[1758727813421,1.27473876,113700.0,113690.0,0.87398633]
[1758727814320,1.27473876,113700.0,113690.0,0.88724633]
[1758727815727,1.26113876,113700.0,113690.0,0.88724633]
[1758727816128,1.27473876,113700.0,113690.0,0.88724633]
[1758727817329,1.27473876,113700.0,113690.0,0.80856]
[1758727818730,1.27473876,113700.0,113690.0,0.87399161]
[1758727819028,1.27473876,113700.0,113690.0,0.51319161]
[1758727819326,1.27473876,113700.0,113690.0,0.4345]
[1758727819915,1.62579102,113700.0,113690.0,0.4345]
[1758727820227,1.98659102,113700.0,113690.0,0.0906792]
[1758727820725,1.2844865,113700.0,113690.0,0.0906792]
[1758727820926,1.98659102,113700.0,113690.0,0.0906792]
[1758727821116,2.4067915,113700.0,113690.0,0.0906792]
[1758727821321,2.4067915,113700.0,113690.0,0.012]
[1758727823631,2.4067915,113700.0,113690.0,0.0906792]
[1758727824225,2.0067915,113700.0,113690.0,0.1130992]
[1758727824432,1.65573924,113700.0,113690.0,0.1130992]
[1758727825619,2.0067915,113700.0,113690.0,0.1130992]
[1758727831126,0.8462715,113700.0,113690.0,0.1130992]
[1758727831327,1.6459115,113700.0,113690.0,0.1130992]
[1758727831834,1.6459115,113700.0,113690.0,0.0906792]
[1758727832932,0.94380698,113700.0,113690.0,0.0906792]
[1758727833134,1.6459115,113700.0,113690.0,0.0906792]
[1758727833334,2.0067115,113700.0,113690.0,0.0906792]
[1758727835031,2.0067115,113700.0,113690.0,0.012]
[1758727837843,2.4067115,113700.0,113690.0,0.012]
[1758727839553,2.0067115,113700.0,113690.0,0.1130992]
[1758727839952,2.0067115,113700.0,113690.0,0.012]
[1758727841356,2.0082315,113700.0,113690.0,0.1130992]
[1758727841549,1.65717924,113700.0,113690.0,0.1130992]
[1758727841753,2.0082315,113700.0,113690.0,0.1130992]
[1758727843758,2.0082315,113700.0,113690.0,0.0906792]
[1758727844254,2.0082315,113700.0,113690.0,0.1130992]
[1758727845157,1.6474315,113700.0,113690.0,0.1130992]
[1758727846558,2.00804086,113700.0,113690.0,0.1130992]
[1758727846758,1.64724086,113700.0,113690.0,0.03442]
[1758727848254,1.64724086,113700.0,113690.0,0.14458165]
[1758727848658,1.64724086,113700.0,113690.0,0.03442]
[1758727849060,1.64724086,113700.0,113690.0,0.11307476]
[1758727852559,1.64724086,113700.0,113690.0,0.03442]
[1758727852757,1.64724086,113700.0,113690.0,0.14458165]
[1758727853961,1.64724086,113700.0,113690.0,0.03442]
[1758727854465,1.64724086,113700.0,113690.0,0.14454361]
[1758727855062,1.64724086,113700.0,113690.0,0.03442]
[1758727855364,1.64724086,113700.0,113690.0,0.11308364]
[1758727861060,0.1103665,113700.0,113690.0,0.86508284]
[1758727861263,1.61252038,113700.0,113690.0,0.9141259]
[1758727861569,1.62615038,113700.0,113690.0,0.4521115]
[1758727861866,1.62615038,113700.0,113690.0,0.8129115]
[1758727862263,1.62615038,113700.0,113690.0,0.4521115]
[1758727862455,1.62615038,113700.0,113690.0,0.53076988]
[1758727862654,1.62615038,113700.0,113690.0,0.4521115]
[1758727863870,1.62615038,113700.0,113690.0,0.0521115]
[1758727866763,1.98695038,113700.0,113690.0,0.0296915]
[1758727868871,2.3586144,113700.0,113690.0,0.012]
[1758727869073,2.00765746,113700.0,113690.0,0.012]
[1758727871174,2.3586144,113700.0,113690.0,0.012]
[1758727872680,2.3586144,113700.0,113690.0,0.09065988]
[1758727873177,2.3586144,113700.0,113690.0,0.012]
[1758727873478,2.00765746,113700.0,113690.0,0.09068543]
[1758727873671,2.00765746,113700.0,113690.0,0.11277543]
[1758727875777,2.00765746,113700.0,113690.0,0.03409]
[1758727876477,2.00765746,113700.0,113690.0,0.012]
[1758727876677,2.00765746,113700.0,113690.0,0.03409]
[1758727877179,2.00765746,113700.0,113690.0,0.012]
[1758727878079,2.00765746,113700.0,113690.0,0.03409]
[1758727879073,2.00765746,113700.0,113690.0,0.012]
[1758727879478,2.00765746,113700.0,113690.0,0.12212361]
[1758727880078,2.00765746,113700.0,113690.0,0.14501361]
[1758727881881,2.00765746,113700.0,113690.0,0.12212361]
[1758727882676,2.00765746,113700.0,113690.0,0.14501361]
[1758727882981,2.00765746,113700.0,113690.0,0.12212361]
[1758727884287,2.3586144,113700.0,113690.0,0.12212361]
[1758727885180,2.3586144,113700.0,113690.0,0.20081745]
[1758727885482,2.3586144,113700.0,113690.0,0.09069384]
[1758727888089,2.00765746,113700.0,113690.0,0.09069384]
[1758727889588,2.3586144,113700.0,113690.0,0.09069384]
[1758727891487,2.3586144,113700.0,113690.0,0.09069384]
[1758727892590,2.7586144,113700.0,113690.0,0.09069384]
[1758727894791,2.7586144,113700.0,113690.0,0.012]
[1758727894992,0.1248744,113690.0,113680.0,0.11012361]
[1758727895186,1.18758828,113690.0,113680.0,0.11012361]
[1758727895387,1.18758828,113690.0,113680.0,0.0787216]
[1758727895888,1.18758828,113690.0,113680.0,0.040074]
[1758727896099,0.1248821,113680.0,113670.0,0.15752635]
[1758727896295,3.09105825,113680.0,113670.0,0.04740274]
[1758727897496,3.09605825,113680.0,113670.0,0.04740274]
[1758727898497,3.10205825,113680.0,113670.0,0.04740274]
[1758727899600,2.70205825,113680.0,113670.0,0.04740274]
[1758727900005,2.70213825,113680.0,113670.0,0.04740274]
[1758727900204,2.72413825,113680.0,113670.0,0.04740274]
[1758727900500,1.57334131,113680.0,113670.0,0.04740274]
[1758727900801,2.37318131,113680.0,113670.0,0.07029274]
[1758727902296,1.21254131,113680.0,113670.0,0.47029274]
[1758727902492,1.68005955,113680.0,113670.0,0.48305274]
[1758727903898,1.68005955,113680.0,113670.0,0.47029274]
[1758727907804,0.88021955,113680.0,113670.0,0.47029274]
[1758727908007,1.68009955,113680.0,113670.0,0.47029274]
[1758727908598,1.329264,113680.0,113670.0,0.47029274]
[1758727909399,1.330704,113680.0,113670.0,0.47029274]
[1758727909604,1.330584,113680.0,113670.0,0.47029274]
[1758727913906,0.529384,113680.0,113670.0,0.44502274]
[1758727914107,0.16467567,113680.0,113670.0,0.93295264]
[1758727914412,0.96583567,113680.0,113670.0,0.93295264]
[1758727915413,1.316914,113680.0,113670.0,0.93295264]
[1758727917718,0.96583567,113680.0,113670.0,0.93295264]
[1758727917916,1.316914,113680.0,113670.0,0.93295264]
[1758727918317,0.96583567,113680.0,113670.0,1.02092273]
[1758727918518,0.96567567,113680.0,113670.0,1.02092273]
[1758727919127,0.16467567,113680.0,113670.0,1.37200106]
[1758727919314,0.96587567,113680.0,113670.0,1.37200106]
[1758727919513,0.96587567,113680.0,113670.0,1.48212467]
[1758727919717,0.96587567,113680.0,113670.0,1.13104634]
[1758727919917,0.87795357,113680.0,113670.0,1.48212467]
[1758727920119,0.07675357,113680.0,113670.0,1.48212467]
[1758727920313,0.07675357,113680.0,113670.0,1.37200106]
[1758727920314,0.05342357,113680.0,113670.0,1.37200106]
[1758727921612,0.14134577,113680.0,113670.0,1.37200106]
[1758727921817,0.05342357,113680.0,113670.0,1.37200106]
[1758727922323,0.05342357,113680.0,113670.0,2.17328106]
[1758727922521,0.05342357,113680.0,113670.0,2.28340467]
[1758727922718,0.05342357,113680.0,113670.0,1.93232634]
[1758727922918,0.05342357,113680.0,113670.0,2.28340467]
[1758727923716,0.14134567,113680.0,113670.0,2.28340467]
[1758727924017,0.05342357,113680.0,113670.0,2.28340467]
[1758727925426,0.05342357,113680.0,113670.0,1.93232634]
[1758727925624,0.05342357,113680.0,113670.0,2.28340467]
[1758727926729,0.14134577,113680.0,113670.0,2.28340467]
[1758727927228,0.14134577,113680.0,113670.0,1.93232634]
[1758727927429,0.14134577,113680.0,113670.0,2.28340467]
[1758727927729,0.14134577,113680.0,113670.0,1.93232634]
[1758727929226,0.05342357,113680.0,113670.0,2.28340467]
[1758727929932,0.14134597,113680.0,113670.0,2.28340467]
[1758727930129,0.14134597,113680.0,113670.0,1.93232634]
[1758727930326,0.14134597,113680.0,113670.0,2.28340467]
[1758727930833,0.14134597,113680.0,113670.0,2.17328106]
[1758727932833,0.14134597,113680.0,113670.0,1.93232634]
[1758727933836,0.14134597,113680.0,113670.0,2.28340467]
[1758727935038,0.05342357,113680.0,113670.0,2.28340467]
[1758727936434,0.14134597,113680.0,113670.0,1.93232634]
[1758727936737,0.14134597,113680.0,113670.0,2.28340467]
[1758727937244,0.05342357,113680.0,113670.0,2.28340467]
[1758727939145,0.05342357,113680.0,113670.0,2.17328106]
[1758727940736,0.05046347,113680.0,113670.0,2.17328106]
[1758727940945,0.05046347,113680.0,113670.0,2.28340467]
[1758727943237,0.05046347,113680.0,113670.0,2.17328106]
[1758727943638,0.05046347,113680.0,113670.0,1.82220273]
[1758727943945,0.1434926,113680.0,113670.0,1.42176273]
[1758727944142,0.05557,113680.0,113670.0,1.5320728]
[1758727944445,0.05557,113680.0,113670.0,1.88315113]
[1758727944646,0.033,113680.0,113670.0,1.90072511]
[1758727945147,0.033,113680.0,113670.0,1.79041504]
[1758727946046,0.033,113680.0,113670.0,1.90075422]
[1758727948147,0.033,113680.0,113670.0,1.90099832]
[1758727948348,0.033,113680.0,113670.0,1.88318024]
[1758727948650,0.033,113680.0,113670.0,1.90099832]
[1758727951245,0.1209227,113680.0,113670.0,1.90099832]
[1758727951448,0.1209227,113680.0,113670.0,1.97115939]
[1758727952150,0.1209227,113680.0,113670.0,1.62008106]
[1758727952352,0.1209227,113680.0,113670.0,1.97099939]
[1758727953350,0.1434927,113680.0,113670.0,1.17031939]
[1758727953651,0.1434927,113680.0,113670.0,1.97099939]
[1758727954855,0.1434927,113680.0,113670.0,1.61992106]
[1758727955150,0.1434927,113680.0,113670.0,1.97099939]
[1758727956459,0.1434927,113680.0,113670.0,1.86066021]
[1758727956752,0.1434927,113680.0,113670.0,1.50958188]
[1758727958458,0.05557,113680.0,113670.0,1.50958188]
[1758727958955,0.1434927,113680.0,113670.0,1.50958188]
[1758727959350,0.1434927,113680.0,113670.0,1.86066021]
[1758727960050,0.1434927,113680.0,113670.0,1.50958188]
[1758727960255,0.49457103,113680.0,113670.0,0.70890188]
[1758727960555,0.50720103,113680.0,113670.0,0.70890188]
[1758727961347,0.1434927,113680.0,113670.0,0.70890188]
[1758727963256,0.1434927,113680.0,113670.0,0.86615808]
[1758727965259,0.50720103,113680.0,113670.0,0.86615808]
[1758727966456,0.50720103,113680.0,113670.0,0.70890188]
[1758727966862,0.49457103,113680.0,113670.0,0.70890188]
[1758727967160,0.49457103,113680.0,113670.0,0.70890238]
[1758727967454,1.30768103,113680.0,113670.0,0.55081091]
[1758727967661,1.72847233,113680.0,113670.0,0.44891082]
[1758727967952,1.72847233,113680.0,113670.0,0.17554155]
[1758727967953,2.08927233,113680.0,113670.0,0.17554155]
[1758727968957,2.08927233,113680.0,113670.0,0.06522082]
[1758727969559,2.15828776,113680.0,113670.0,0.06522082]
[1758727970559,2.50943445,113680.0,113670.0,0.06522082]
[1758727971356,0.24592943,113680.0,113670.0,0.08730082]
[1758727971556,1.03545943,113680.0,113670.0,0.10125082]
[1758727971756,1.31755651,113680.0,113670.0,0.21157155]
[1758727972158,1.66866902,113680.0,113670.0,0.21157155]
[1758727972458,1.31791651,113680.0,113670.0,0.29950195]
[1758727972964,1.31791651,113680.0,113670.0,0.54029373]
[1758727973356,1.31799651,113680.0,113670.0,0.54029373]
[1758727974250,1.31799651,113680.0,113670.0,0.18918122]
[1758727975165,1.31799651,113680.0,113670.0,0.54029373]
[1758727975467,1.31799651,113680.0,113670.0,0.18918122]
[1758727976667,1.31799651,113680.0,113670.0,0.29949586]
[1758727976861,1.66910902,113680.0,113670.0,0.21156546]
[1758727977061,1.68247902,113680.0,113670.0,0.19761546]
[1758727977261,0.980254,113680.0,113670.0,0.19761546]
[1758727977465,1.68247902,113680.0,113670.0,0.19761546]
[1758727978666,1.68247902,113680.0,113670.0,0.28554586]
[1758727978966,1.68247902,113680.0,113670.0,0.29949586]
[1758727979168,1.66910902,113680.0,113670.0,0.29949586]
[1758727979465,0.8789613,113680.0,113670.0,0.66029586]
[1758727979655,1.31771651,113680.0,113670.0,1.01140837]
[1758727980268,0.164284,113680.0,113670.0,0.98906382]
[1758727980461,0.0537913,113680.0,113670.0,1.38906382]
[1758727981470,0.1417144,113680.0,113670.0,1.38906382]
[1758727981671,0.0537913,113680.0,113670.0,1.54632002]
[1758727982371,0.40490381,113680.0,113670.0,1.54632002]
[1758727982671,0.49282691,113680.0,113670.0,1.54632002]
[1758727983974,0.49282691,113680.0,113670.0,0.95002091]
[1758727984164,0.49282691,113680.0,113670.0,1.06023762]
[1758727984467,0.51542691,113680.0,113670.0,1.14816832]
[1758727985065,0.86653942,113680.0,113670.0,0.66023762]
[1758727985268,0.88017942,113680.0,113670.0,0.29943762]
[1758727985571,0.88017942,113680.0,113670.0,0.18922091]
[1758727985771,0.88017942,113680.0,113670.0,0.17527091]
[1758727988370,0.88017942,113680.0,113670.0,0.08730082]
[1758727989470,0.88017942,113680.0,113670.0,0.17523152]
[1758727989666,0.88017942,113680.0,113670.0,0.08730082]
[1758727990169,0.88017942,113680.0,113670.0,0.19751753]
[1758727990570,0.1779544,113680.0,113670.0,0.19751753]
[1758727990866,0.88017942,113680.0,113670.0,0.19751753]
[1758727991874,1.28017942,113680.0,113670.0,0.19751753]
[1758727993076,1.28017942,113680.0,113670.0,0.17543753]
[1758727993573,1.64097942,113680.0,113670.0,0.17543753]
[1758727993974,1.64097942,113680.0,113670.0,0.06522082]
[1758727994465,1.64097942,113680.0,113670.0,0.08780082]
[1758727994973,1.62018812,113680.0,113670.0,0.08780082]
[1758727997674,2.42362812,113680.0,113670.0,0.08780082]
[1758727998480,1.62018812,113680.0,113670.0,0.08780082]
[1758727998672,2.42358812,113680.0,113670.0,0.08780082]
[1758728000368,2.42358812,113680.0,113670.0,0.08622082]
[1758728001174,2.42358812,113680.0,113670.0,0.06522082]
[1758728002078,2.42386812,113680.0,113670.0,0.06522082]
[1758728002776,2.42386812,113680.0,113670.0,0.08622082]
[1758728004279,2.42386812,113680.0,113670.0,0.06522082]
[1758728004474,1.62018812,113680.0,113670.0,0.06522082]
[1758728004779,2.42398812,113680.0,113670.0,0.06522082]
[1758728004981,2.42398812,113680.0,113670.0,0.08622082]
[1758728005280,2.42398812,113680.0,113670.0,0.06522082]
[1758728006282,2.77510063,113680.0,113670.0,0.04740274]
[1758728006470,0.01343,113670.0,113660.0,0.11021671]
[1758728006670,1.53864773,113670.0,113660.0,0.11021671]
[1758728006883,0.124518,113660.0,113650.0,0.11021671]
[1758728007078,2.34237553,113660.0,113650.0,0.11021671]
[1758728008082,2.35237553,113660.0,113650.0,0.11021671]
[1758728009077,2.36114126,113660.0,113650.0,0.11021671]
[1758728009384,2.36114126,113660.0,113640.0,0.13121671]
[1758728009385,0.1245258,113650.0,113640.0,0.13121671]
[1758728009579,0.82675082,113650.0,113640.0,0.13121671]
[1758728009879,1.18755082,113650.0,113640.0,0.13121671]
[1758728010482,1.18755082,113650.0,113640.0,0.021]
[1758728011685,1.19155082,113650.0,113640.0,0.021]
[1758728012082,1.19255082,113650.0,113640.0,0.1089543]
[1758728013183,0.84143831,113650.0,113640.0,0.1221343]
[1758728013483,0.48063831,113650.0,113640.0,0.4829343]
[1758728013787,1.27088831,113650.0,113640.0,0.4829343]
[1758728013980,1.27084831,113650.0,113640.0,0.4829343]
[1758728014484,1.27084831,113650.0,113640.0,0.4828943]
[1758728014485,1.28427831,113650.0,113640.0,0.4828943]
[1758728015189,1.27084831,113650.0,113640.0,0.4828943]
[1758728015389,0.9197358,113650.0,113640.0,0.4828943]
[1758728015591,1.27084831,113650.0,113640.0,0.4828943]
[1758728018288,0.46720831,113650.0,113640.0,1.23400681]
[1758728018490,1.27080831,113650.0,113640.0,1.23400681]
[1758728019486,1.27080831,113650.0,113640.0,0.83400681]
[1758728019680,1.27080831,113650.0,113640.0,0.4828943]
[1758728019892,1.27080831,113650.0,113640.0,0.59311101]
[1758728022185,1.28423831,113650.0,113640.0,0.59311101]
[1758728022385,1.27080831,113650.0,113640.0,0.59311101]
[1758728023189,1.28423831,113650.0,113640.0,0.59311101]
[1758728024696,1.63535082,113650.0,113640.0,0.57993101]
[1758728024890,1.28423831,113650.0,113640.0,0.57993101]
[1758728025394,0.1111042,113640.0,113630.0,0.66337705]
[1758728025602,0.82675922,113640.0,113630.0,0.64970705]
[1758728025897,0.82675922,113640.0,113630.0,0.57997861]
[1758728026698,0.82775922,113640.0,113630.0,0.57997861]
[1758728027092,0.82775922,113640.0,113630.0,0.58097861]
[1758728027700,1.18855922,113640.0,113630.0,0.11121671]
[1758728027898,1.18855922,113640.0,113630.0,0.001]
[1758728028095,1.18855922,113640.0,113630.0,0.02395]
[1758728028290,1.18855922,113640.0,113630.0,0.13416671]
[1758728029194,1.19855922,113640.0,113630.0,0.13316671]
[1758728029390,1.20055922,113640.0,113630.0,0.13316671]
[1758728030603,1.20097708,113640.0,113630.0,0.1109119]
[1758728030994,1.20097708,113640.0,113630.0,0.02295]
[1758728031391,1.20097708,113640.0,113630.0,0.110912]
[1758728031592,0.84965564,113640.0,113630.0,0.110912]
[1758728031793,0.4983342,113640.0,113630.0,0.110912]
[1758728031991,0.84965564,113640.0,113630.0,0.110912]
[1758728033503,0.84965564,113640.0,113630.0,0.22112871]
[1758728034001,0.84965564,113640.0,113630.0,0.13316671]
[1758728034202,1.20097708,113640.0,113630.0,0.13316671]
[1758728034603,0.84965564,113640.0,113630.0,0.13316671]
[1758728035208,0.84965564,113640.0,113630.0,0.22112871]
[1758728036600,0.48885564,113640.0,113630.0,0.58192871]
[1758728036905,0.84017708,113640.0,113630.0,0.58192871]
[1758728037105,0.84017708,113640.0,113630.0,0.13316671]
[1758728037300,0.48885564,113640.0,113630.0,0.13316671]
[1758728038406,1.29233564,113640.0,113630.0,0.13316671]
[1758728038705,1.64365708,113640.0,113630.0,0.13316671]
[1758728039207,1.64365708,113640.0,113630.0,0.22112871]
[1758728039406,1.64365708,113640.0,113630.0,0.13316671]
[1758728039701,1.64365708,113640.0,113630.0,0.11021671]
[1758728040007,2.40445708,113640.0,113630.0,0.11021671]
[1758728040507,0.122012,113630.0,113620.0,0.11021671]
[1758728040706,0.83413344,113630.0,113620.0,0.11021671]
[1758728041205,1.65571807,113630.0,113620.0,0.11021671]
[1758728041710,0.1220197,113620.0,113610.0,0.11021671]
[1758728042006,0.1220275,113610.0,113600.0,0.58002101]
[1758728042207,0.47334894,113610.0,113600.0,0.58002101]
[1758728042712,0.82467038,113610.0,113600.0,0.13123671]
[1758728042896,0.82467038,113610.0,113600.0,0.21922191]
[1758728043107,0.83367899,113610.0,113600.0,0.1090052]
[1758728043302,0.83367899,113610.0,113600.0,0.21941467]
[1758728044519,0.82567038,113610.0,113600.0,0.21941467]
[1758728044820,0.82567038,113610.0,113600.0,0.1090052]
[1758728045009,0.47434894,113610.0,113600.0,0.1090052]
[1758728045212,0.47434894,113610.0,113600.0,0.1100052]
[1758728047909,0.47434894,113610.0,113600.0,0.2672614]
[1758728050119,0.47434894,113610.0,113600.0,0.2800014]
[1758728050313,0.9132175,113610.0,113600.0,1.0408014]
[1758728050715,0.9132575,113610.0,113600.0,1.0408014]
[1758728051916,0.9132575,113610.0,113600.0,0.8835452]
[1758728053918,0.9132575,113610.0,113600.0,1.23486664]
[1758728054310,0.9132575,113610.0,113600.0,0.8835452]
[1758728056927,0.82528,113610.0,113600.0,1.23486664]
[1758728057236,0.001,113610.0,113600.0,1.43329877]
[1758728058531,0.001,113610.0,113600.0,1.32289093]
[1758728061031,0.001,113610.0,113600.0,0.97156949]
[1758728061231,0.0239,113610.0,113600.0,1.32289093]
[1758728061436,0.0239,113610.0,113600.0,1.48073416]
[1758728062537,0.1118775,113610.0,113600.0,1.48073416]
[1758728064234,0.1118775,113610.0,113600.0,1.12941272]
[1758728064437,0.1118775,113610.0,113600.0,0.72941272]
[1758728065234,0.46319894,113610.0,113600.0,0.72941272]
[1758728065537,0.46319894,113610.0,113600.0,0.57156949]
[1758728065739,0.1118775,113610.0,113600.0,0.57156949]
[1758728068132,0.1118775,113610.0,113600.0,0.92289093]
[1758728068637,0.1118775,113610.0,113600.0,1.03341702]
[1758728069034,0.1118775,113610.0,113600.0,0.92289093]
[1758728070340,0.1118775,113610.0,113600.0,0.57156949]
[1758728070643,0.1118775,113610.0,113600.0,0.92289093]
[1758728073441,0.1118775,113610.0,113600.0,1.08073416]
[1758728074345,0.1118775,113610.0,113600.0,0.72941272]
[1758728074543,0.1118775,113610.0,113600.0,1.08073416]
[1758728075838,0.1118775,113610.0,113600.0,0.92289093]
[1758728076946,0.1118775,113610.0,113600.0,0.57156949]
[1758728077148,0.47666894,113610.0,113600.0,0.4835452]
[1758728077946,0.47666894,113610.0,113600.0,0.4708052]
[1758728078140,1.22799038,113610.0,113600.0,0.38282]
[1758728078340,1.22799038,113610.0,113600.0,0.001]
[1758728078536,1.22799038,113610.0,113600.0,0.13359841]
[1758728079345,1.58879038,113610.0,113600.0,0.001]
[1758728079547,1.18879038,113610.0,113600.0,0.02311]
[1758728079750,1.18879038,113610.0,113600.0,0.13359841]
[1758728081447,1.18879038,113610.0,113600.0,0.02311]
[1758728081849,1.18879038,113610.0,113600.0,0.1110953]
[1758728082150,1.18879038,113610.0,113600.0,0.22158371]
[1758728082354,1.19079038,113610.0,113600.0,0.22058371]
[1758728082542,1.20079038,113610.0,113600.0,0.22058371]
[1758728082742,0.84946894,113610.0,113600.0,0.22058371]
[1758728083544,0.84946894,113610.0,113600.0,0.13259841]
[1758728084050,1.60079038,113610.0,113600.0,0.13259841]
[1758728089048,1.60079038,113610.0,113600.0,0.02211]
[1758728089644,1.60079038,113610.0,113600.0,0.1100952]
[1758728089848,0.84946894,113610.0,113600.0,0.1232352]
[1758728090049,0.48866894,113610.0,113600.0,0.1232352]
[1758728090452,0.47519894,113610.0,113600.0,0.1232352]
[1758728090654,0.47529416,113610.0,113600.0,0.83545186]
[1758728091553,0.0359,113610.0,113600.0,1.58686852]
[1758728091749,0.013,113610.0,113600.0,1.78538122]
[1758728093263,0.1009775,113610.0,113600.0,1.78538122]
[1758728093554,0.1009775,113610.0,113600.0,1.67489281]
[1758728094958,0.013,113610.0,113600.0,1.67489281]
[1758728096955,0.36441666,113610.0,113600.0,1.32347615]
[1758728097257,0.36441666,113610.0,113600.0,1.67489281]
[1758728098453,0.013,113610.0,113600.0,1.67489281]
[1758728099661,0.1009775,113610.0,113600.0,1.67489281]
[1758728099855,0.48926416,113610.0,113600.0,0.1232352]
[1758728100057,0.48926416,113610.0,113600.0,0.49353458]
[1758728100058,1.24068082,113610.0,113600.0,0.49353458]
[1758728100259,1.24068082,113610.0,113600.0,0.13273458]
[1758728100458,0.88926416,113610.0,113600.0,0.13273458]
[1758728101761,0.88926416,113610.0,113600.0,0.23356978]
[1758728102058,0.47564416,113610.0,113600.0,0.94578644]
[1758728102356,0.47564416,113610.0,113600.0,1.78522739]
[1758728102357,0.013,113610.0,113600.0,1.78522739]
[1758728102564,0.1009775,113610.0,113600.0,0.97176949]
[1758728102862,0.1009775,113610.0,113600.0,1.67460281]
[1758728103062,0.013,113610.0,113600.0,1.67460281]
[1758728105153,0.1009775,113610.0,113600.0,1.67460281]
[1758728105355,0.1009775,113610.0,113600.0,1.32318615]
[1758728105356,0.45239416,113610.0,113600.0,1.32318615]
[1758728105556,0.47564416,113610.0,113600.0,0.97176949]
[1758728105761,0.47564416,113610.0,113600.0,1.32318615]
[1758728107068,0.47564416,113610.0,113600.0,1.67460281]
[1758728107069,0.013,113610.0,113600.0,1.67460281]
[1758728107766,0.45239416,113610.0,113600.0,1.67460281]
[1758728108067,0.45239416,113610.0,113600.0,1.32318615]
[1758728109967,0.45239416,113610.0,113600.0,1.43385249]
[1758728111568,0.45239416,113610.0,113600.0,1.32318615]
[1758728111882,0.36441666,113610.0,113600.0,1.32318615]
[1758728112060,0.013,113610.0,113600.0,1.67460281]
[1758728112261,0.013,113610.0,113600.0,0.97176949]
[1758728112560,0.1009775,113610.0,113600.0,1.67460281]
[1758728114366,0.1242275,113610.0,113600.0,1.67460281]
[1758728114670,0.03625,113610.0,113600.0,1.67460281]
[1758728114864,0.013,113610.0,113600.0,1.67460281]
[1758728115166,0.47564416,113610.0,113600.0,0.97176949]
[1758728115469,0.47564416,113610.0,113600.0,1.32318615]
[1758728115672,0.47564416,113610.0,113600.0,0.97176949]
[1758728115969,0.47564416,113610.0,113600.0,1.32318615]
[1758728117871,0.47564416,113610.0,113600.0,0.97176949]
[1758728118169,0.47564416,113610.0,113600.0,1.32318615]
[1758728118371,0.47564416,113610.0,113600.0,0.97176949]
[1758728118667,0.47564416,113610.0,113600.0,1.32318615]
[1758728119261,0.47564416,113610.0,113600.0,0.57176949]
[1758728119459,0.47564416,113610.0,113600.0,0.92318615]
[1758728120169,0.47564416,113610.0,113600.0,1.03389908]
[1758728120365,0.47564416,113610.0,113600.0,0.68248242]
[1758728120567,0.47564416,113610.0,113600.0,1.03389908]
[1758728121270,0.47564416,113610.0,113600.0,0.68248242]
[1758728123073,0.47564416,113610.0,113600.0,0.57176949]
[1758728124873,0.47564416,113610.0,113600.0,0.68255595]
[1758728125373,0.47564416,113610.0,113600.0,0.59457075]
[1758728125770,0.47564416,113610.0,113600.0,0.68255605]
[1758728126775,0.47564416,113610.0,113600.0,1.03397271]
[1758728127377,0.47564416,113610.0,113600.0,0.68255605]
[1758728127672,0.47564416,113610.0,113600.0,1.03397271]
[1758728128675,0.47564416,113610.0,113600.0,0.68255605]
[1758728128976,0.47564416,113610.0,113600.0,1.03397271]
[1758728129369,0.47564416,113610.0,113600.0,0.68255605]
[1758728129564,0.47564416,113610.0,113600.0,0.92318625]
[1758728130374,0.1242275,113610.0,113600.0,0.92318625]
[1758728130581,0.47564416,113610.0,113600.0,0.92318625]
[1758728131672,0.45239416,113610.0,113600.0,0.92318625]
[1758728132172,0.47491416,113610.0,113600.0,0.92318625]
[1758728134274,0.47491416,113610.0,113600.0,1.03397271]
[1758728135479,0.38693666,113610.0,113600.0,1.03397271]
[1758728135678,0.013,113610.0,113600.0,1.38538937]
[1758728135878,0.013,113610.0,113600.0,1.78538937]
[1758728136778,0.013,113610.0,113600.0,1.67460291]
[1758728137180,0.013,113610.0,113600.0,1.94328387]
[1758728137476,0.013,113610.0,113600.0,1.24045055]
[1758728137682,0.013,113610.0,113600.0,1.94328387]
[1758728137882,0.013,113610.0,113600.0,1.78544064]
[1758728139190,0.013,113610.0,113600.0,1.80305258]
[1758728139377,0.013,113610.0,113600.0,2.04363151]
[1758728139579,0.013,113610.0,113600.0,1.45005808]
[1758728139775,0.04325252,113640.0,113630.0,0.124352]
[1758728139976,0.37214918,113640.0,113630.0,0.83656866]
[1758728140282,0.37214918,113640.0,113630.0,0.92459295]
[1758728140582,0.46010348,113640.0,113630.0,0.92459295]
[1758728140883,0.02073252,113640.0,113630.0,0.92459295]
[1758728141078,0.04325252,113640.0,113630.0,0.64422753]
[1758728141277,0.07725252,113640.0,113630.0,1.15348742]
[1758728141885,0.42866918,113640.0,113630.0,1.15348742]
[1758728142271,0.40614918,113640.0,113630.0,1.15348742]
[1758728142476,0.40514918,113640.0,113630.0,1.15348742]
[1758728142676,0.05373252,113640.0,113630.0,1.15348742]
[1758728142884,0.40514918,113640.0,113630.0,0.99564419]
[1758728143285,0.05373252,113640.0,113630.0,0.99564419]
[1758728143688,0.033,113640.0,113630.0,1.50604479]
[1758728143982,0.006,113640.0,113630.0,1.39564419]
[1758728144177,0.011,113640.0,113630.0,1.85739805]
[1758728144383,0.46187166,113670.0,113660.0,0.1243288]
[1758728144682,0.46186776,113670.0,113660.0,0.83654546]
[1758728144873,0.4712485,113680.0,113670.0,0.1243211]
[1758728145081,0.82266516,113680.0,113670.0,0.1243211]
[1758728145381,0.46186516,113680.0,113670.0,0.4851211]
[1758728146082,0.37393666,113680.0,113670.0,0.4851211]
[1758728146284,0.37393666,113680.0,113670.0,0.83653776]
[1758728146484,0.46185806,113690.0,113680.0,0.1243133]
[1758728146679,0.46185806,113690.0,113680.0,0.4851133]
[1758728147583,0.46185806,113690.0,113680.0,0.57307565]
[1758728148883,0.47085806,113690.0,113680.0,0.64445563]
[1758728149084,0.47085806,113690.0,113680.0,0.99587229]
[1758728149085,0.009,113690.0,113680.0,0.99587229]
[1758728149781,0.36041666,113690.0,113680.0,0.99587229]
[1758728150174,0.46981276,113690.0,113680.0,0.99587229]
[1758728150684,0.1183961,113690.0,113680.0,0.64445563]
[1758728152386,0.46930898,113690.0,113680.0,0.64445563]
[1758728152787,0.46930898,113690.0,113680.0,0.55653233]
[1758728152980,0.46930898,113690.0,113680.0,0.64445633]
[1758728157382,0.1183961,113690.0,113680.0,0.64445633]
[1758728157581,0.46930898,113690.0,113680.0,0.64445633]
[1758728157987,0.1183961,113690.0,113680.0,0.64445633]
[1758728158383,0.46930898,113690.0,113680.0,0.64445633]
[1758728159988,0.1183961,113690.0,113680.0,0.64445633]
[1758728160188,0.46930898,113690.0,113680.0,0.64445633]
[1758728160684,0.1183961,113690.0,113680.0,0.64445633]
[1758728160987,0.1183961,113690.0,113680.0,0.99536921]